fUST/lending_fUST_20250515
["ID","MTS","AMOUNT","RATE_DAILY","PERIOD"]
[361082376,1747239038134,-444.76270921,0.00013697,2]
[361082378,1747239038144,-300.0,0.00013697,2]
[361082380,1747239038154,-1200.0,0.00013697,2]
[361082382,1747239038163,-3221.02627458,0.00013698,12]
[361082384,1747239038172,-500.0,0.00013698,2]
[361082386,1747239038182,-427.35097868,0.00013698,2]
[361082388,1747239038201,-500.0,0.00013698,2]
[361082390,1747239038213,-359.92629368,0.00013698,2]
[361082392,1747239038223,-500.0,0.00013698,2]
[361082394,1747239038232,-404.73061452,0.00013698,2]
[361082396,1747239038242,-375.985593,0.00013699,2]
[361082398,1747239038252,-500.0,0.00013699,2]
[361082400,1747239038262,-500.0,0.00013699,2]
[361082402,1747239038271,-500.0,0.00013699,2]
[361082403,1747239038281,-500.0,0.00013699,2]
[361082405,1747239038291,-500.0,0.00013699,2]
[361082407,1747239038306,-500.0,0.00013699,2]
[361082409,1747239038316,-500.0,0.00013699,2]
[361082411,1747239038326,-500.0,0.00013699,2]
[361082413,1747239038336,-500.0,0.00013699,2]
[361082415,1747239038346,-500.0,0.00013699,2]
[361082417,1747239038356,-500.0,0.00013699,2]
[361082419,1747239038365,-500.0,0.00013699,2]
[361082421,1747239038377,-500.0,0.00013699,2]
[361082423,1747239038391,-500.0,0.00013699,2]
[361082425,1747239038401,-500.0,0.00013699,2]
[361082427,1747239038412,-500.0,0.00013699,2]
[361082429,1747239038423,-500.0,0.00013699,2]
[361082431,1747239038433,-293.56848013,0.00013699,2]
[361082433,1747239038442,-500.0,0.00013699,2]
[361082435,1747239038452,-500.0,0.00013699,2]
[361082437,1747239038462,-500.0,0.00013699,2]
[361082439,1747239038472,-500.0,0.00013699,2]
[361082440,1747239038481,-500.0,0.00013699,2]
[361082441,1747239038491,-452.2105871,0.00013792,2]
[361082442,1747239038500,-176.971446,0.00013878,2]
[361082443,1747239038509,-538.45438905,0.000139,2]
[361082444,1747239038519,-444.35128382,0.000141,2]
[361082445,1747239038529,-538.45438882,0.00014383,2]
[361082446,1747239038539,-538.45438882,0.00014866,2]
[361082447,1747239038548,-538.45438882,0.00015348,2]
[361082448,1747239038557,-186.52663727,0.00015649,2]
[361082449,1747239038566,-12627.42419379,0.00015749,2]
[361082450,1747239038577,-997.9747837,0.00015749,2]
[361082451,1747239038586,-160.0,0.00015749,2]
[361082452,1747239038595,-212.21045333,0.00015749,2]
[361082453,1747239038605,-160.0,0.00015749,2]
[361082454,1747239038617,-422.27619506,0.00015749,2]
[361082455,1747239038627,-538.45438882,0.00015831,2]
[361082456,1747239038635,-538.45438882,0.00016314,2]
[361082457,1747239038645,-538.45438882,0.00016797,2]
[361082458,1747239038654,-538.45438882,0.00017279,2]
[361082459,1747239038664,-538.45438882,0.00017762,2]
[361082460,1747239038673,-538.45438882,0.00018245,2]
[361082461,1747239038683,-538.45438882,0.00018728,2]
[361082462,1747239038692,-538.45438882,0.0001921,2]
[361082463,1747239038701,-404.0,0.00019642,2]
[361082464,1747239038711,-538.45438882,0.00019693,2]
[361082465,1747239038721,-367.241,0.0001973,2]
[361082466,1747239038730,-448.85,0.00019983,7]
[361082467,1747239038739,-157.8,0.0002,2]
[361082468,1747239038748,-538.45438882,0.00020176,2]
[361082469,1747239038757,-375.985593,0.00020187,2]
[361082470,1747239038767,-538.45438882,0.00020659,3]
[361082471,1747239038777,-538.45438882,0.00021141,4]
[361082472,1747239038786,-500.0,0.00021623,2]
[361082473,1747239038795,-476.1516277,0.00021623,2]
[361082474,1747239038805,-500.0,0.00021623,2]
[361082475,1747239038814,-442.93719635,0.00021623,2]
[361082476,1747239038823,-500.0,0.00021623,2]
[361082477,1747239038832,-538.45438882,0.00021624,5]
[361082478,1747239038842,-200.592,0.00021918,2]
[361082479,1747239038851,-500.0,0.00021918,2]
[361082480,1747239038861,-500.0,0.00021918,2]
[361082481,1747239038870,-500.0,0.00021918,2]
[361082482,1747239038880,-500.0,0.00021918,2]
[361082484,1747239038889,-500.0,0.00021918,2]
[361082485,1747239038899,-500.0,0.00021918,2]
[361082486,1747239038909,-500.0,0.00021918,2]
[361082487,1747239038918,-500.0,0.00021918,2]
[361082489,1747239038928,-500.0,0.00021918,2]
[361082491,1747239038938,-500.0,0.00021918,2]
[361082493,1747239038948,-500.0,0.00021918,2]
[361082495,1747239038958,-500.0,0.00021918,2]
[361082497,1747239038967,-500.0,0.00021918,2]
[361082499,1747239038977,-500.0,0.00021918,2]
[361082501,1747239038987,-179.44184982,0.00021918,2]
[361082503,1747239038996,-300.0,0.00021918,2]
[361082505,1747239039006,-538.45438882,0.00022107,6]
[361082507,1747239039016,-308.4835268,0.00022219,2]
[361082509,1747239039028,-1153.7715431,0.00022219,2]
[361082511,1747239039038,-153.0,0.00022329,2]
[361082513,1747239039047,-315.8011736,0.00022329,2]
[361082515,1747239039057,-569.2587971,0.00022329,2]
[361082517,1747239039067,-333.9657327,0.00022329,2]
[361082519,1747239039078,-349.6847012,0.00022329,2]
[361082521,1747239039088,-569.2587971,0.00022329,2]
[361082523,1747239039098,-569.2587971,0.00022329,2]
[361082525,1747239039107,-569.2587971,0.00022329,2]
[361082527,1747239039117,-569.2587971,0.00022329,2]
[361082529,1747239039126,-398.8562338,0.00022329,2]
[361082531,1747239039136,-331.6295733,0.00022329,2]
[361082533,1747239039145,-362.9868952,0.00022384,2]
[361082535,1747239039155,-2200.0,0.00022495,2]
[361082537,1747239039165,-187.953458,0.0002253,7]
[361082540,1747239039176,-538.45438882,0.0002259,7]
[361082542,1747239039187,-166.145,0.00022642,2]
[361082544,1747239039196,-800.0,0.00022695,2]
[361082546,1747239039206,-800.0,0.00022739,2]
[361082547,1747239039216,-1790.0115674,0.00022785,2]
[361082550,1747239039225,-800.0,0.00022885,2]
[361082551,1747239039235,-1561.94343062,0.0002289,2]
[361082554,1747239039245,-337.26619291,0.000229,2]
[361082556,1747239039255,-151.0,0.000229,9]
[361082557,1747239039266,-197.98141773,0.000229,60]
[361082558,1747239039276,-800.0,0.00022924,2]
[361082559,1747239039286,-500.0,0.00022973,2]
[361082560,1747239039296,-600.0,0.00022973,2]
[361082562,1747239039305,-212.21045333,0.0002299,3]
[361082564,1747239039315,-997.9747837,0.0002299,3]
[361082565,1747239039325,-160.0,0.0002299,3]
[361082566,1747239039335,-199563.04601934,0.0002299,2]
[361082568,1747239039345,-11490.91720387,0.0002299,3]
[361082570,1747239039355,-1025430.93571687,0.0002299,7]
[361082596,1747239040408,-893.5,0.00019983,7]
[361082597,1747239040420,-17441.29131491,0.0002299,7]
[361082599,1747239040429,-151.0,0.0002299,7]
[361082600,1747239040439,-212.21045333,0.0002299,7]
[361082601,1747239040449,-997.9747837,0.0002299,7]
[361082602,1747239040458,-160.0,0.0002299,7]
[361082603,1747239040468,-2200.0,0.0002299,2]
[361082605,1747239040478,-6295.4771443,0.00023,2]
[361082607,1747239040488,-269884.99669909,0.00023,2]
[361083131,1747239443879,-211.90783396,0.00013699,2]
[361083136,1747239727004,-126.47919904,0.00013699,2]
[361083137,1747239727028,-209.6466011,0.00014747,2]
[361083138,1747239727050,-151.00172521,0.00015649,2]
[361083139,1747239727074,-1200.0,0.00015744,2]
[361083140,1747239727101,-300.0,0.00015744,2]
[361083141,1747239727125,-300.0,0.00015744,2]
[361083142,1747239727148,-6712.87247465,0.00015745,2]
[361083178,1747240232208,-857.9226631,0.00015401,2]
[361083179,1747240232219,-10310.82958121,0.00015742,2]
[361083184,1747240232319,-1486.34461494,0.00015742,2]
[361083185,1747240232329,-500.0,0.00015742,2]
[361083186,1747240232339,-500.0,0.00015742,2]
[361083187,1747240232348,-604.51613265,0.00015742,2]
[361083188,1747240232357,-401.02282635,0.00015742,2]
[361083189,1747240232367,-500.0,0.00015742,2]
[361083190,1747240232376,-500.0,0.00015742,2]
[361083191,1747240232387,-486.78639355,0.00015742,2]
[361083192,1747240232396,-500.0,0.00015742,2]
[361083193,1747240232406,-474.25923139,0.00015742,2]
[361083195,1747240232415,-438.14276099,0.00015742,2]
[361083197,1747240232425,-500.0,0.00015742,2]
[361083198,1747240232439,-500.0,0.00015742,2]
[361083199,1747240232448,-500.0,0.00015742,2]
[361083200,1747240232457,-500.0,0.00015742,2]
[361083201,1747240232467,-500.0,0.00015742,2]
[361083202,1747240232478,-500.0,0.00015742,2]
[361083203,1747240232487,-500.0,0.00015742,2]
[361083204,1747240232497,-500.0,0.00015742,2]
[361083205,1747240232507,-160.0,0.00015827,2]
[361083206,1747240232516,-212.21045333,0.00015827,2]
[361083207,1747240232526,-422.27619506,0.00015827,2]
[361083208,1747240232535,-997.9747837,0.00015827,2]
[361083209,1747240232546,-160.0,0.00015827,2]
[361083210,1747240232556,-410.26983227,0.0001585,2]
[361083211,1747240232565,-528.8283506,0.0001612,2]
[361083212,1747240232575,-500.0,0.0001612,2]
[361083213,1747240232585,-500.0,0.0001612,2]
[361083214,1747240232594,-314.20984982,0.0001614,2]
[361083215,1747240232604,-500.0,0.0001614,2]
[361083216,1747240232613,-500.0,0.0001614,2]
[361083217,1747240232622,-642.47625026,0.0001614,2]
[361083218,1747240232632,-490.37070545,0.0001614,2]
[361083219,1747240232641,-500.0,0.0001616,2]
[361083220,1747240232650,-500.0,0.0001616,2]
[361083221,1747240232660,-500.0,0.0001616,2]
[361083222,1747240232669,-500.0,0.0001616,2]
[361083223,1747240232678,-505.2488761,0.0001616,2]
[361083224,1747240232688,-493.24270838,0.0001616,2]
[361083225,1747240232697,-500.0,0.0001616,2]
[361083226,1747240232708,-502.18083544,0.00016225,2]
[361083227,1747240232717,-255.57799751,0.000169,2]
[361083228,1747240232727,-500.0,0.00017026,2]
[361083229,1747240232737,-500.0,0.00017026,2]
[361083230,1747240232746,-401.0996141,0.00017026,2]
[361083231,1747240232756,-500.0,0.00017026,2]
[361083232,1747240232766,-608.28285569,0.00017026,2]
[361083233,1747240232775,-8517.7156172,0.00017027,2]
[361083234,1747240232785,-255.57799749,0.00017279,2]
[361083235,1747240232794,-255.57799749,0.00017659,2]
[361083236,1747240232803,-24900.0,0.00017733,2]
[361083237,1747240232813,-255.57799749,0.00018038,2]
[361083238,1747240232823,-255.57799749,0.00018417,2]
[361083239,1747240232831,-255.57799749,0.00018797,2]
[361083240,1747240232842,-265.0,0.00018857,2]
[361083241,1747240232851,-255.57799749,0.00019176,2]
[361083242,1747240232861,-255.57799749,0.00019555,2]
[361083243,1747240232870,-255.57799749,0.00019934,2]
[361083244,1747240232880,-157.8,0.0002,2]
[361083245,1747240232889,-151.67971136,0.0002,7]
[361083246,1747240232899,-306.73723,0.00020119,15]
[361083247,1747240232908,-329.581,0.00020187,2]
[361083248,1747240232917,-338.387033,0.00020187,2]
[361083249,1747240232927,-2238.0,0.00020242,2]
[361083250,1747240232937,-706.0,0.00020242,2]
[361083251,1747240232946,-404.0,0.00020242,2]
[361083252,1747240232956,-255.57799749,0.00020314,3]
[361083253,1747240232965,-207.4,0.0002069,2]
[361083254,1747240232974,-255.57799749,0.00020693,3]
[361083255,1747240232984,-255.57799749,0.00021072,4]
[361083256,1747240232993,-255.57799749,0.00021452,5]
[361083257,1747240233002,-255.57799749,0.00021831,6]
[361083258,1747240233012,-500.0,0.00021918,2]
[361083259,1747240233021,-500.0,0.00021918,2]
[361083260,1747240233032,-500.0,0.00021918,2]
[361083261,1747240233041,-500.0,0.00021918,2]
[361083262,1747240233051,-500.0,0.00021918,2]
[361083263,1747240233060,-500.0,0.00021918,2]
[361083264,1747240233070,-500.0,0.00021918,2]
[361083265,1747240233079,-542.3813126,0.00021918,2]
[361083266,1747240233089,-500.0,0.00021918,2]
[361083267,1747240233099,-500.0,0.00021918,2]
[361083268,1747240233109,-1000.0,0.00022,22]
[361083269,1747240233119,-255.57799749,0.0002221,6]
[361083270,1747240233128,-315.5822364,0.00022219,2]
[361083271,1747240233138,-501.84514803,0.0002222,2]
[361083272,1747240233151,-600.0,0.0002222,2]
[361083273,1747240233161,-175.678528,0.00022247,2]
[361083274,1747240233171,-153.0,0.00022247,2]
[361083275,1747240233181,-153.0,0.00022247,2]
[361083276,1747240233191,-153.0,0.00022247,2]
[361083277,1747240233201,-153.0,0.00022247,2]
[361083278,1747240233211,-153.0,0.00022247,2]
[361083279,1747240233220,-307.2938119,0.00022247,2]
[361083280,1747240233230,-725.7033224,0.00022493,2]
[361083281,1747240233240,-363.1221292,0.00022493,2]
[361083282,1747240233249,-363.1221292,0.00022493,2]
[361083283,1747240233259,-363.1221292,0.00022493,2]
[361083284,1747240233270,-187.953458,0.0002253,7]
[361083285,1747240233279,-255.57799749,0.0002259,7]
[361083286,1747240233289,-1200.0,0.00022768,2]
[361083287,1747240233299,-2200.0,0.00022783,2]
[361083288,1747240233308,-1265.0,0.00022798,7]
[361083289,1747240233319,-1733.1026839,0.00022884,2]
[361083290,1747240233329,-545.85491872,0.00022915,2]
[361083291,1747240233338,-255.57799749,0.00022969,8]
[361083292,1747240233349,-160.0,0.00022999,2]
[361083293,1747240233359,-130115.00330091,0.00023,2]
[361083294,1747240233370,-5102.62,0.00023,7]
[361083295,1747240233381,-1000.0,0.00023,23]
[361083296,1747240233391,-599.4,0.00023,2]
[361083297,1747240233402,-19152.0,0.00023,2]
[361083298,1747240233412,-500.0,0.00023,30]
[361083299,1747240233422,-500.0,0.00023,30]
[361083300,1747240233436,-500.0,0.00023,30]
[361083301,1747240233446,-500.0,0.00023,30]
[361083302,1747240233456,-500.0,0.00023,30]
[361083303,1747240233466,-500.0,0.00023,30]
[361083304,1747240233477,-500.0,0.00023,30]
[361083305,1747240233487,-2000.0,0.00023014,120]
[361083306,1747240233497,-153.0,0.00023178,2]
[361083307,1747240233510,-569.2587971,0.00023178,2]
[361083308,1747240233521,-288.989364,0.00023178,2]
[361083309,1747240233531,-569.2587971,0.00023178,2]
[361083310,1747240233542,-157.9553211,0.00023178,2]
[361083311,1747240233552,-157.9553211,0.00023178,2]
[361083312,1747240233562,-569.2587971,0.00023178,2]
[361083313,1747240233572,-1800.0,0.00023316,2]
[361083314,1747240233582,-255.57799749,0.00023348,9]
[361083315,1747240233593,-363.1221292,0.0002337,2]
[361083316,1747240233603,-363.1221292,0.0002337,2]
[361083317,1747240233614,-1041.2956204,0.000234,2]
[361083318,1747240233625,-362.5811932,0.00023452,2]
[361083319,1747240233635,-121555.57521605,0.000235,2]
[361083320,1747240233646,-151.0,0.000235,7]
[361083321,1747240233655,-151.0,0.000235,7]
[361083322,1747240233666,-208.781055,0.000235,7]
[361083323,1747240233677,-208.781055,0.000235,7]
[361083324,1747240233687,-151.0,0.000235,7]
[361083325,1747240233698,-2000.0,0.00023562,120]
[361083326,1747240233708,-2000.0,0.00023562,120]
[361083327,1747240233718,-205.0,0.0002364,2]
[361083328,1747240233728,-160.0,0.00023653,6]
[361083329,1747240233738,-255.57799749,0.00023728,9]
[361083330,1747240233748,-2000.0,0.00023836,120]
[361083331,1747240233758,-200.0,0.00023855,2]
[361083332,1747240233769,-2400.0,0.00023864,2]
[361083333,1747240233779,-157.9553211,0.00023918,2]
[361083334,1747240233789,-306.0,0.00023918,2]
[361083335,1747240233799,-569.2587971,0.00023918,2]
[361083336,1747240233810,-157.9553211,0.00023918,2]
[361083337,1747240233820,-569.2587971,0.00023918,2]
[361083338,1747240233831,-157.9553211,0.00023918,2]
[361083339,1747240233842,-568.6457897,0.00023918,2]
[361083340,1747240233853,-1181.7209831,0.00023978,8]
[361083341,1747240233864,-1000.0,0.00024,24]
[361083342,1747240233874,-50158.4363825,0.00024,7]
[361083343,1747240233886,-1500.0,0.00024,2]
[361083344,1747240233897,-1500.0,0.00024,2]
[361083345,1747240233908,-1500.0,0.00024,2]
[361083346,1747240233919,-1500.0,0.00024,2]
[361083347,1747240233931,-1500.0,0.00024,2]
[361083348,1747240233946,-1500.0,0.00024,2]
[361083349,1747240233956,-1500.0,0.00024,2]
[361083350,1747240233968,-1500.0,0.00024,2]
[361083351,1747240233978,-1500.0,0.00024,2]
[361083352,1747240233988,-1786.71,0.00024,2]
[361083353,1747240233999,-1500.0,0.00024,2]
[361083354,1747240234010,-160.0,0.00024,7]
[361083355,1747240234019,-160.0,0.00024,7]
[361083356,1747240234030,-212.21045333,0.00024,7]
[361083357,1747240234040,-422.27619506,0.00024,7]
[361083358,1747240234050,-997.9747837,0.00024,7]
[361083359,1747240234060,-569.2587971,0.00024,2]
[361083360,1747240234070,-157.9553211,0.00024,2]
[361083361,1747240234080,-568.2371181,0.00024,2]
[361083362,1747240234090,-255.57799749,0.00024107,10]
[361083363,1747240234100,-2000.0,0.0002411,120]
[361083364,1747240234110,-2000.0,0.0002411,120]
[361083365,1747240234119,-442.0,0.00024113,45]
[361083366,1747240234129,-170.0,0.000242,16]
[361083367,1747240234140,-205.0,0.0002423,2]
[361083368,1747240234150,-500.0,0.0002438,2]
[361083369,1747240234159,-2000.0,0.00024384,120]
[361083370,1747240234169,-3000.0,0.00024412,2]
[361083371,1747240234179,-255.57799749,0.00024486,11]
[361083372,1747240234192,-5102.62,0.000245,7]
[361083373,1747240234202,-208.781055,0.000245,7]
[361083374,1747240234212,-208.781055,0.000245,7]
[361083375,1747240234221,-151.0,0.000245,7]
[361083376,1747240234231,-240.00000099,0.00024567,10]
[361083377,1747240234241,-160.0,0.00024576,7]
[361083378,1747240234250,-983.93,0.00024605,3]
[361083379,1747240234259,-300.0,0.00024658,2]
[361083380,1747240234269,-200.0,0.00024658,15]
[361083381,1747240234279,-295.19467383,0.00024658,2]
[361083382,1747240234289,-2000.0,0.00024658,120]
[361083383,1747240234299,-2000.0,0.00024658,120]
[361083384,1747240234308,-983.93,0.00024705,5]
[361083385,1747240234317,-2000.0,0.000248,2]
[361083386,1747240234327,-151.0,0.000248,7]
[361083387,1747240234336,-152.54,0.000248,31]
[361083388,1747240234346,-152.54,0.000248,31]
[361083389,1747240234355,-152.54,0.000248,31]
[361083390,1747240234365,-152.54,0.000248,31]
[361083391,1747240234374,-152.54,0.000248,31]
[361083392,1747240234384,-152.54,0.000248,31]
[361083393,1747240234393,-152.54,0.000248,31]
[361083394,1747240234402,-983.93,0.00024805,5]
[361083395,1747240234411,-205.0,0.0002481,2]
[361083396,1747240234421,-255.57799749,0.00024866,12]
[361083397,1747240234434,-500.0,0.00024873,2]
[361083398,1747240234443,-72466.78419156,0.00024893,2]
[361083399,1747240234453,-151.0,0.00024893,7]
[361083400,1747240234462,-192.65,0.00024893,7]
[361083401,1747240234472,-270.620227,0.00024893,7]
[361083402,1747240234482,-629.309246,0.00024893,7]
[361083403,1747240234491,-629.309246,0.00024893,7]
[361083404,1747240234500,-364.595753,0.00024893,7]
[361083405,1747240234510,-364.595753,0.00024893,7]
[361083406,1747240234520,-1771.955258,0.00024893,2]
[361083407,1747240234530,-1771.955258,0.00024893,2]
[361083408,1747240234540,-151.0,0.00024893,7]
[361083409,1747240234551,-151.0,0.00024893,7]
[361083410,1747240234561,-159.10041,0.00024893,7]
[361083411,1747240234571,-151.0,0.00024893,7]
[361083412,1747240234580,-151.0,0.00024893,7]
[361083413,1747240234590,-151.0,0.00024893,7]
[361083414,1747240234600,-208.781055,0.00024896,7]
[361083415,1747240234610,-208.781055,0.00024896,7]
[361083416,1747240234620,-190.5512,0.00024896,7]
[361083417,1747240234629,-72466.78419156,0.00024896,2]
[361083418,1747240234638,-66872.05387339,0.000249,2]
[361083419,1747240234653,-555.00371477,0.000249,2]
[361083420,1747240234664,-2508.23760735,0.000249,2]
[361083422,1747240238116,-610.5,0.00020119,15]
[361083423,1747240238126,-500.0,0.00021918,2]
[361083424,1747240238136,-1988.3,0.000249,2]
[361083474,1747240240397,-425.79799898,0.00017025,2]
[361083476,1747240240407,-282.95200977,0.00017025,2]
[361083808,1747240243427,-217.04799023,0.00017025,2]
[361083810,1747240243439,-500.0,0.00017025,2]
[361083812,1747240243448,-330.76972986,0.00017025,2]
[361083814,1747240243457,-306.5,0.00020119,15]
[361083816,1747240243466,-500.0,0.00021918,2]
[361083817,1747240243476,-500.0,0.00021918,2]
[361083819,1747240243486,-500.0,0.00021918,2]
[361083823,1747240243495,-2164.57383865,0.00023244,2]
[361084056,1747240246294,-604.23808455,0.00015741,2]
[361084057,1747240246303,-97.15560103,0.00015741,2]
[361084058,1747240246316,-66.65098024,0.00015741,2]
[361084059,1747240246326,-500.0,0.00021918,2]
[361084061,1747240246335,-500.0,0.00021918,2]
[361084062,1747240246345,-529.66691882,0.00021918,2]
[361084066,1747240246484,-153.80416135,0.00023244,2]
[361084067,1747240246499,-44.90184417,0.00024,7]
[361084068,1747240246512,-115.09815583,0.00024,7]
[361084070,1747240246522,-630.37665928,0.000249,2]
[361084071,1747240246534,-300.14988973,0.000249,2]
[361084072,1747240246546,-30634.13352798,0.000249,2]
[361084073,1747240246557,-5745.45860193,0.000249,3]
[361084074,1747240246567,-5064.53,0.000249,7]
[361084075,1747240246576,-66473.4532231,0.000249,7]
[361084076,1747240246650,-709.44996267,0.000249,7]
[361084094,1747240916870,-324.426511,0.00013699,2]
[361084112,1747241432426,-500.0,0.000159,2]
[361084114,1747241432436,-230.0,0.00015984,2]
[361084116,1747241432446,-1200.0,0.00015984,2]
[361084118,1747241432455,-300.0,0.00015984,2]
[361084120,1747241432465,-212.21045333,0.00015985,2]
[361084122,1747241432474,-160.0,0.00015985,2]
[361084124,1747241432483,-422.27619506,0.00015985,2]
[361084125,1747241432493,-997.9747837,0.00015985,2]
[361084127,1747241432502,-160.0,0.00015985,2]
[361084129,1747241432512,-6022.86371085,0.00017498,2]
[361084131,1747241432522,-501.61174265,0.000175,2]
[361084133,1747241432531,-155.75301956,0.0001765,2]
[361084135,1747241432540,-500.0,0.0001765,2]
[361084137,1747241432550,-258.24463679,0.0001765,2]
[361084139,1747241432559,-500.0,0.0001765,2]
[361084141,1747241432569,-500.0,0.0001765,2]
[361084143,1747241432578,-500.0,0.0001765,2]
[361084145,1747241432587,-500.0,0.0001765,2]
[361084147,1747241432596,-500.0,0.0001765,2]
[361084148,1747241432605,-500.0,0.0001782,2]
[361084149,1747241432615,-500.0,0.000179,2]
[361084150,1747241432624,-500.0,0.000179,2]
[361084151,1747241432633,-500.0,0.000179,2]
[361084152,1747241432643,-500.0,0.000179,2]
[361084154,1747241432652,-204.46239801,0.000179,2]
[361084155,1747241432661,-204.2384552,0.0001796,2]
[361084156,1747241432674,-500.0,0.0001796,2]
[361084157,1747241432683,-230.9059633,0.0001796,2]
[361084158,1747241432692,-500.0,0.0001796,2]
[361084159,1747241432702,-500.0,0.0001796,2]
[361084160,1747241432712,-500.0,0.0001796,2]
[361084161,1747241432721,-291.64115457,0.00018198,2]
[361084162,1747241432731,-181.22309401,0.00018508,2]
[361084163,1747241432741,-204.46239799,0.00019011,2]
[361084164,1747241432750,-152.0,0.00019552,2]
[361084165,1747241432759,-157.8,0.0002,2]
[361084166,1747241432769,-204.46239799,0.00020122,2]
[361084167,1747241432778,-6171.98189614,0.00020187,2]
[361084168,1747241432787,-324.426511,0.00020187,2]
[361084169,1747241432796,-500.0,0.00020647,2]
[361084170,1747241432806,-510.634213,0.00020647,2]
[361084171,1747241432815,-500.0,0.00020647,2]
[361084172,1747241432825,-419.83714374,0.00020647,2]
[361084173,1747241432834,-24900.0,0.00020648,2]
[361084174,1747241432844,-151.0,0.0002069,2]
[361084175,1747241432853,-207.4,0.0002069,2]
[361084176,1747241432863,-546.0,0.00021032,2]
[361084177,1747241432872,-404.0,0.00021032,2]
[361084178,1747241432882,-7390.0165067,0.00021147,2]
[361084179,1747241432891,-204.46239799,0.00021233,4]
[361084180,1747241432900,-500.0,0.00021918,2]
[361084181,1747241432910,-500.0,0.00021918,2]
[361084182,1747241432921,-500.0,0.00021918,2]
[361084183,1747241432935,-500.0,0.00021918,2]
[361084184,1747241432945,-219.08556755,0.00021918,2]
[361084185,1747241432954,-500.0,0.00021918,2]
[361084186,1747241432963,-1867.48525012,0.00022,25]
[361084187,1747241432973,-605.43099965,0.0002204,2]
[361084188,1747241432983,-605.43099965,0.00022195,2]
[361084189,1747241432992,-204.46239799,0.00022344,7]
[361084190,1747241433002,-605.43099965,0.00022604,2]
[361084191,1747241433012,-160.0,0.00022729,3]
[361084192,1747241433022,-605.43099965,0.00022918,2]
[361084193,1747241433031,-160.0,0.00022999,2]
[361084194,1747241433043,-500.0,0.00023,30]
[361084195,1747241433052,-500.0,0.00023,30]
[361084196,1747241433062,-500.0,0.00023,30]
[361084197,1747241433072,-500.0,0.00023,30]
[361084198,1747241433082,-605.43099965,0.00023081,2]
[361084199,1747241433092,-605.43099965,0.00023418,2]
[361084200,1747241433101,-204.46239799,0.00023456,9]
[361084201,1747241433111,-605.43099965,0.00023813,2]
[361084202,1747241433120,-605.43099965,0.00023838,2]
[361084203,1747241433129,-546.0,0.00024032,2]
[361084204,1747241433140,-605.43099965,0.00024165,2]
[361084205,1747241433150,-605.4309997,0.00024397,2]
[361084206,1747241433160,-500.0,0.000244,2]
[361084207,1747241433175,-204.46239799,0.00024567,11]
[361084208,1747241433185,-156.060929,0.00024626,10]
[361084209,1747241433195,-300.0,0.00024658,2]
[361084210,1747241433205,-285.5170413,0.00024658,2]
[361084211,1747241433215,-200.0,0.00024658,15]
[361084212,1747241433225,-308.4117063,0.00024685,2]
[361084213,1747241433235,-1669.6065825,0.00024775,2]
[361084214,1747241433244,-670.09845733,0.00024796,2]
[361084215,1747241433254,-2000.0,0.000248,2]
[361084216,1747241433264,-152.56,0.000248,31]
[361084217,1747241433274,-152.56,0.000248,31]
[361084218,1747241433284,-152.56,0.000248,31]
[361084219,1747241433295,-152.56,0.000248,31]
[361084220,1747241433305,-152.56,0.000248,31]
[361084221,1747241433315,-152.56,0.000248,31]